[Event "Live Chess"]
[Site "Chess.com"]
[Date "2024.06.01"]
[Round "-"]
[White "JohanKjeldahl"]
[Black "Demyan7777"]
[Result "1-0"]
[WhiteElo "1832"]
[BlackElo "1848"]
[TimeControl "300"]
[EndTime "12:37:52 PDT"]
[Termination "JohanKjeldahl won by checkmate"]

1. c4 {[%clk 0:04:55.4]} 1... Nf6 {[%clk 0:04:58.1]} 2. Nc3 {[%clk 0:04:54.3]}
2... e6 {[%clk 0:04:57.6]} 3. e4 {[%clk 0:04:51.7]} 3... c5 {[%clk 0:04:51.6]}
4. e5 {[%clk 0:04:50.6]} 4... Ng8 {[%clk 0:04:50.4]} 5. Nf3 {[%clk 0:04:49.6]}
5... Nc6 {[%clk 0:04:48.2]} 6. d4 {[%clk 0:04:45.7]} 6... cxd4 {[%clk
0:04:46.9]} 7. Nxd4 {[%clk 0:04:43.7]} 7... Nxe5 {[%clk 0:04:43.9]} 8. Bf4
{[%clk 0:04:42.4]} 8... Nc6 {[%clk 0:04:39.9]} 9. Ndb5 {[%clk 0:04:40.2]} 9...
d6 {[%clk 0:04:33.3]} 10. Bxd6 {[%clk 0:04:34.1]} 10... Bxd6 {[%clk 0:04:29.8]}
11. Nxd6+ {[%clk 0:04:32.9]} 11... Kf8 {[%clk 0:04:29.1]} 12. Nce4 {[%clk
0:04:25.4]} 12... Nge7 {[%clk 0:04:20.3]} 13. Qf3 {[%clk 0:04:23.1]} 13... Nf5
{[%clk 0:04:05]} 14. g4 {[%clk 0:04:18.9]} 14... Nxd6 {[%clk 0:03:59.2]} 15.
O-O-O {[%clk 0:04:15.6]} 15... Ne5 {[%clk 0:03:57.5]} 16. Qa3 {[%clk 0:04:09.3]}
16... Nxc4 {[%clk 0:03:48]} 17. Bxc4 {[%clk 0:04:04.3]} 17... Qc7 {[%clk
0:03:44.6]} 18. Nxd6 {[%clk 0:04:01.6]} 18... Kg8 {[%clk 0:03:39.9]} 19. Kb1
{[%clk 0:03:57.7]} 19... g6 {[%clk 0:03:37]} 20. Nxc8 {[%clk 0:03:49.8]} 20...
Rxc8 {[%clk 0:03:33.7]} 21. Bd3 {[%clk 0:03:47.6]} 21... Kg7 {[%clk 0:03:31]}
22. Rc1 {[%clk 0:03:43]} 22... Qf4 {[%clk 0:03:28.8]} 23. h3 {[%clk 0:03:34.8]}
23... Qxf2 {[%clk 0:03:23]} 24. Rxc8 {[%clk 0:03:31.5]} 24... Rxc8 {[%clk
0:03:21]} 25. Rf1 {[%clk 0:03:29.9]} 25... Qd4 {[%clk 0:03:14.1]} 26. Bc2 {[%clk
0:03:23.5]} 26... Rxc2 {[%clk 0:03:11.4]} 27. Kxc2 {[%clk 0:03:17]} 27... Qe4+
{[%clk 0:03:05]} 28. Qd3 {[%clk 0:03:13.2]} 28... Qg2+ {[%clk 0:03:04]} 29. Kb1
{[%clk 0:03:07.4]} 29... Qc6 {[%clk 0:02:59.4]} 30. Qc3+ {[%clk 0:03:05.4]}
30... Kg8 {[%clk 0:02:09]} 31. Qxc6 {[%clk 0:03:02.3]} 31... bxc6 {[%clk
0:01:53.5]} 32. Rc1 {[%clk 0:03:00.5]} 32... Kg7 {[%clk 0:01:51.5]} 33. Rxc6
{[%clk 0:02:59.1]} 33... h5 {[%clk 0:01:51]} 34. gxh5 {[%clk 0:02:56.7]} 34...
gxh5 {[%clk 0:01:50.4]} 35. Rc7 {[%clk 0:02:54.1]} 35... Kg6 {[%clk 0:01:47.6]}
36. Rxa7 {[%clk 0:02:52.9]} 36... Kg5 {[%clk 0:01:47.3]} 37. b4 {[%clk 0:02:51]}
37... Kh4 {[%clk 0:01:46.9]} 38. Ra3 {[%clk 0:02:46.9]} 38... f5 {[%clk
0:01:45.5]} 39. b5 {[%clk 0:02:45.6]} 39... f4 {[%clk 0:01:44.8]} 40. b6 {[%clk
0:02:44.7]} 40... e5 {[%clk 0:01:43.7]} 41. b7 {[%clk 0:02:43.4]} 41... e4
{[%clk 0:01:43.4]} 42. b8=Q {[%clk 0:02:41.8]} 42... f3 {[%clk 0:01:43.1]} 43.
Qf4+ {[%clk 0:02:40.4]} 43... Kxh3 {[%clk 0:01:42.7]} 44. Qxe4 {[%clk 0:02:39]}
44... Kh2 {[%clk 0:01:40.6]} 45. Rxf3 {[%clk 0:02:37]} 45... h4 {[%clk
0:01:40.2]} 46. Qe2+ {[%clk 0:02:35.9]} 46... Kg1 {[%clk 0:01:34.4]} 47. Rf1#
{[%clk 0:02:34.7]} 1-0

[Event "Live Chess"]
[Site "Chess.com"]
[Date "2024.06.01"]
[Round "-"]
[White "missedJariChance"]
[Black "JanMur7"]
[Result "0-1"]
[WhiteElo "1341"]
[BlackElo "2313"]
[TimeControl "300"]
[EndTime "12:37:56 PDT"]
[Termination "JanMur7 won by resignation"]

1. b3 {[%clk 0:04:54.6]} 1... d5 {[%clk 0:04:58.3]} 2. Bb2 {[%clk 0:04:52.9]}
2... Bg4 {[%clk 0:04:57.8]} 3. h3 {[%clk 0:04:46.7]} 3... Bh5 {[%clk 0:04:55.4]}
4. Nf3 {[%clk 0:04:45.2]} 4... Nf6 {[%clk 0:04:49.8]} 5. e3 {[%clk 0:04:43.2]}
5... e6 {[%clk 0:04:48.4]} 6. Be2 {[%clk 0:04:41.7]} 6... Bd6 {[%clk 0:04:47]}
7. O-O {[%clk 0:04:38.6]} 7... Nbd7 {[%clk 0:04:45.4]} 8. c4 {[%clk 0:04:32.2]}
8... c6 {[%clk 0:04:40.7]} 9. cxd5 {[%clk 0:04:28.1]} 9... cxd5 {[%clk
0:04:39.2]} 10. d4 {[%clk 0:04:26.6]} 10... O-O {[%clk 0:04:37.2]} 11. Nbd2
{[%clk 0:04:25.2]} 11... Rc8 {[%clk 0:04:34.8]} 12. Rc1 {[%clk 0:04:23]} 12...
Qa5 {[%clk 0:04:33.2]} 13. a4 {[%clk 0:04:05.3]} 13... Bb4 {[%clk 0:04:26.6]}
14. g4 {[%clk 0:03:22.3]} 14... Bg6 {[%clk 0:04:23.8]} 15. Nh4 {[%clk
0:03:06.9]} 15... Bxd2 {[%clk 0:04:19.8]} 16. Nxg6 {[%clk 0:03:02]} 16... hxg6
{[%clk 0:04:17.1]} 17. Rxc8 {[%clk 0:02:52.4]} 17... Rxc8 {[%clk 0:04:17]} 18.
Bb5 {[%clk 0:02:40]} 18... Bc3 {[%clk 0:04:08.5]} 19. Ba3 {[%clk 0:02:26.1]}
19... Bb4 {[%clk 0:04:01]} 20. Bb2 {[%clk 0:02:18.8]} 20... a6 {[%clk
0:03:43.3]} 21. Be2 {[%clk 0:02:13.7]} 21... Ne4 {[%clk 0:03:28.6]} 22. Kg2
{[%clk 0:02:06.5]} 22... Nc3 {[%clk 0:03:27.4]} 23. Bxc3 {[%clk 0:02:04.4]}
23... Rxc3 {[%clk 0:03:21]} 24. Bd3 {[%clk 0:01:54.7]} 24... Qc7 {[%clk
0:03:14.1]} 25. Qf3 {[%clk 0:01:48.4]} 25... Rxd3 {[%clk 0:03:12]} 0-1

[Event "Live Chess"]
[Site "Chess.com"]
[Date "2024.06.01"]
[Round "-"]
[White "Ferrarifan27"]
[Black "WelshTiger"]
[Result "0-1"]
[WhiteElo "2059"]
[BlackElo "2543"]
[TimeControl "300"]
[EndTime "12:38:07 PDT"]
[Termination "WelshTiger won by resignation"]

1. e4 {[%clk 0:04:53.5]} 1... c5 {[%clk 0:04:58.2]} 2. Nf3 {[%clk 0:04:52.1]}
2... Nc6 {[%clk 0:04:55.8]} 3. b4 {[%clk 0:04:50.6]} 3... Nxb4 {[%clk
0:04:49.7]} 4. c3 {[%clk 0:04:48.7]} 4... Nc6 {[%clk 0:04:48.1]} 5. d4 {[%clk
0:04:48.3]} 5... cxd4 {[%clk 0:04:43.8]} 6. cxd4 {[%clk 0:04:48.2]} 6... e6
{[%clk 0:04:41.8]} 7. d5 {[%clk 0:04:46.6]} 7... Bb4+ {[%clk 0:04:39.7]} 8. Bd2
{[%clk 0:04:45]} 8... Bxd2+ {[%clk 0:04:37.9]} 9. Nbxd2 {[%clk 0:04:42.5]} 9...
Nce7 {[%clk 0:04:11.3]} 10. Nc4 {[%clk 0:04:40]} 10... d6 {[%clk 0:03:57.9]} 11.
dxe6 {[%clk 0:04:37.5]} 11... Bxe6 {[%clk 0:03:57.1]} 12. Nxd6+ {[%clk
0:04:36.2]} 12... Kf8 {[%clk 0:03:56.4]} 13. e5 {[%clk 0:04:10.2]} 13... Nh6
{[%clk 0:03:51.8]} 14. Be2 {[%clk 0:04:02.9]} 14... Nhf5 {[%clk 0:03:44.5]} 15.
Nxf5 {[%clk 0:04:00.6]} 15... Nxf5 {[%clk 0:03:39.3]} 16. O-O {[%clk 0:03:57.4]}
16... Qxd1 {[%clk 0:03:35.6]} 17. Rfxd1 {[%clk 0:03:56.1]} 17... Ke7 {[%clk
0:03:35.3]} 18. Nd4 {[%clk 0:03:49.9]} 18... Nxd4 {[%clk 0:03:33.7]} 19. Rxd4
{[%clk 0:03:49.8]} 19... Rhd8 {[%clk 0:03:31.5]} 20. Rb4 {[%clk 0:03:46.5]}
20... b6 {[%clk 0:03:29.8]} 21. Bf3 {[%clk 0:03:45.4]} 21... Rac8 {[%clk
0:03:28.2]} 22. Rbb1 {[%clk 0:03:33.2]} 22... Rc5 {[%clk 0:03:26.8]} 23. Re1
{[%clk 0:03:29.4]} 23... Rd2 {[%clk 0:03:17]} 24. Rec1 {[%clk 0:02:57.6]} 24...
Rxa2 {[%clk 0:03:09.5]} 25. g3 {[%clk 0:02:47]} 25... Rxa1 {[%clk 0:03:00.8]}
26. Rxa1 {[%clk 0:02:45.6]} 26... a5 {[%clk 0:03:00.4]} 27. Rb1 {[%clk
0:02:41.9]} 27... b5 {[%clk 0:02:58.7]} 28. Re1 {[%clk 0:02:35.3]} 28... a4
{[%clk 0:02:52.9]} 29. Bg2 {[%clk 0:02:33.9]} 29... a3 {[%clk 0:02:52]} 30. f4
{[%clk 0:02:32.5]} 30... b4 {[%clk 0:02:47.9]} 31. Rb1 {[%clk 0:02:18.5]} 31...
b3 {[%clk 0:02:46.9]} 32. Be4 {[%clk 0:02:15.3]} 32... a2 {[%clk 0:02:41.5]} 33.
Rd1 {[%clk 0:02:05.6]} 33... b2 {[%clk 0:02:39.5]} 0-1

[Event "Live Chess"]
[Site "Chess.com"]
[Date "2024.06.01"]
[Round "-"]
[White "Pandreq"]
[Black "booktrunk"]
[Result "0-1"]
[WhiteElo "1140"]
[BlackElo "1371"]
[TimeControl "300"]
[EndTime "12:38:11 PDT"]
[Termination "booktrunk won on time"]

1. d4 {[%clk 0:04:56.4]} 1... b6 {[%clk 0:04:58.8]} 2. c4 {[%clk 0:04:55.1]}
2... Bb7 {[%clk 0:04:51.5]} 3. Nc3 {[%clk 0:04:54.5]} 3... e6 {[%clk 0:04:50.1]}
4. e4 {[%clk 0:04:53.1]} 4... Nf6 {[%clk 0:04:48.6]} 5. Bd3 {[%clk 0:04:50.9]}
5... Bb4 {[%clk 0:04:47]} 6. d5 {[%clk 0:04:43.3]} 6... exd5 {[%clk 0:04:31.8]}
7. cxd5 {[%clk 0:04:39.3]} 7... O-O {[%clk 0:04:14.5]} 8. Bd2 {[%clk 0:04:30.7]}
8... Re8 {[%clk 0:04:03.3]} 9. Qf3 {[%clk 0:04:15.7]} 9... Bxc3 {[%clk
0:03:40.6]} 10. Bxc3 {[%clk 0:04:14.3]} 10... Bxd5 {[%clk 0:03:39.6]} 11. Ne2
{[%clk 0:03:56.1]} 11... Bxe4 {[%clk 0:03:35.6]} 12. Bxe4 {[%clk 0:03:51.7]}
12... Nxe4 {[%clk 0:03:33.5]} 13. O-O {[%clk 0:03:33]} 13... c6 {[%clk
0:03:28.2]} 14. Qg4 {[%clk 0:03:22.8]} 14... Nxc3 {[%clk 0:03:24.2]} 15. Nxc3
{[%clk 0:03:21.6]} 15... d5 {[%clk 0:03:18.2]} 16. Rae1 {[%clk 0:03:19.4]} 16...
Rxe1 {[%clk 0:03:15.9]} 17. Rxe1 {[%clk 0:03:18.4]} 17... Nd7 {[%clk 0:03:15.2]}
18. Re3 {[%clk 0:03:07.4]} 18... Nf6 {[%clk 0:03:13.9]} 19. Qg5 {[%clk
0:02:58.1]} 19... h6 {[%clk 0:03:10.6]} 20. Qh4 {[%clk 0:02:29.1]} 20... Nh7
{[%clk 0:03:05.6]} 21. Qg3 {[%clk 0:02:22.3]} 21... d4 {[%clk 0:02:55.8]} 22.
Rd3 {[%clk 0:02:21.1]} 22... c5 {[%clk 0:02:53.8]} 23. Ne4 {[%clk 0:02:11.8]}
23... Qe7 {[%clk 0:02:50.3]} 24. Qf3 {[%clk 0:02:04.2]} 24... Rf8 {[%clk
0:02:43.5]} 25. h3 {[%clk 0:01:56.1]} 25... Ng5 {[%clk 0:02:37.1]} 26. Nxg5
{[%clk 0:01:49.1]} 26... Qxg5 {[%clk 0:02:35.5]} 27. Qd1 {[%clk 0:01:36.7]}
27... Re8 {[%clk 0:02:23.6]} 28. Rg3 {[%clk 0:01:27.7]} 28... Qe5 {[%clk
0:02:09.4]} 29. Qa4 {[%clk 0:01:15.6]} 29... Re7 {[%clk 0:02:01.7]} 30. Qc6
{[%clk 0:01:09]} 30... g6 {[%clk 0:01:55.9]} 31. Qa8+ {[%clk 0:01:01]} 31... Kg7
{[%clk 0:01:52.7]} 32. Qf3 {[%clk 0:00:57.7]} 32... Rd7 {[%clk 0:01:47.7]} 33.
Qd3 {[%clk 0:00:53.2]} 33... Qe1+ {[%clk 0:01:33.1]} 34. Kh2 {[%clk 0:00:52.1]}
34... Qxf2 {[%clk 0:01:31.2]} 35. Rf3 {[%clk 0:00:49.3]} 35... Qh4 {[%clk
0:01:21.8]} 36. Qf1 {[%clk 0:00:44.6]} 36... Qe7 {[%clk 0:01:17]} 37. Rd3 {[%clk
0:00:39.7]} 37... c4 {[%clk 0:01:14.3]} 38. Rd2 {[%clk 0:00:35.4]} 38... d3
{[%clk 0:01:11.4]} 39. Qf4 {[%clk 0:00:27.4]} 39... b5 {[%clk 0:01:04.2]} 40.
Rf2 {[%clk 0:00:20.4]} 40... f6 {[%clk 0:00:56.6]} 41. Rd2 {[%clk 0:00:12.9]}
41... Qe5 {[%clk 0:00:54]} 42. Qxe5 {[%clk 0:00:10.3]} 42... fxe5 {[%clk
0:00:52.8]} 43. Kg3 {[%clk 0:00:09.2]} 43... Kf6 {[%clk 0:00:49.4]} 44. Kf3
{[%clk 0:00:08.7]} 44... Ke6 {[%clk 0:00:48.3]} 45. g4 {[%clk 0:00:07.8]} 45...
g5 {[%clk 0:00:46.9]} 46. Ke4 {[%clk 0:00:06.6]} 46... Rd4+ {[%clk 0:00:43.9]}
47. Ke3 {[%clk 0:00:05.3]} 47... Rd7 {[%clk 0:00:40.8]} 48. b3 {[%clk
0:00:03.9]} 48... Rf7 {[%clk 0:00:35.2]} 0-1

[Event "Live Chess"]
[Site "Chess.com"]
[Date "2024.06.01"]
[Round "-"]
[White "LanceMaster23"]
[Black "CarmelJane"]
[Result "1-0"]
[WhiteElo "1820"]
[BlackElo "2077"]
[TimeControl "300"]
[EndTime "12:38:20 PDT"]
[Termination "LanceMaster23 won by resignation"]

1. Nf3 {[%clk 0:04:56.8]} 1... g6 {[%clk 0:04:59]} 2. d4 {[%clk 0:04:56.1]} 2...
Bg7 {[%clk 0:04:58.9]} 3. Bf4 {[%clk 0:04:54.7]} 3... c5 {[%clk 0:04:57.4]} 4.
c3 {[%clk 0:04:53.3]} 4... cxd4 {[%clk 0:04:56]} 5. cxd4 {[%clk 0:04:52.4]} 5...
d5 {[%clk 0:04:55.5]} 6. e3 {[%clk 0:04:51.7]} 6... a6 {[%clk 0:04:53.8]} 7.
Nbd2 {[%clk 0:04:50.1]} 7... Nc6 {[%clk 0:04:52.7]} 8. Be2 {[%clk 0:04:49.3]}
8... Bf5 {[%clk 0:04:52]} 9. O-O {[%clk 0:04:47.4]} 9... Nf6 {[%clk 0:04:51]}
10. a3 {[%clk 0:04:45.6]} 10... O-O {[%clk 0:04:50.1]} 11. Rc1 {[%clk
0:04:44.5]} 11... Nh5 {[%clk 0:04:44.6]} 12. Bg3 {[%clk 0:04:40.9]} 12... Nxg3
{[%clk 0:04:43.4]} 13. hxg3 {[%clk 0:04:40.8]} 13... Re8 {[%clk 0:04:42.3]} 14.
b4 {[%clk 0:04:31.1]} 14... e5 {[%clk 0:04:33.2]} 15. dxe5 {[%clk 0:04:30.5]}
15... Nxe5 {[%clk 0:04:31.8]} 16. Qb3 {[%clk 0:04:27.2]} 16... Be6 {[%clk
0:04:24.4]} 17. Nd4 {[%clk 0:04:24.2]} 17... Bf5 {[%clk 0:04:16.4]} 18. Nxf5
{[%clk 0:04:14]} 18... gxf5 {[%clk 0:04:16.3]} 19. Nf3 {[%clk 0:04:07.7]} 19...
Ng4 {[%clk 0:03:53.1]} 20. Rfd1 {[%clk 0:03:54]} 20... Qb6 {[%clk 0:03:41.1]}
21. Nd4 {[%clk 0:03:39.8]} 21... Bxd4 {[%clk 0:03:04.9]} 22. Rxd4 {[%clk
0:03:34]} 22... Nxe3 {[%clk 0:02:59.5]} 23. fxe3 {[%clk 0:03:27.3]} 23... a5
{[%clk 0:02:40.6]} 24. Rc5 {[%clk 0:03:02.7]} 24... axb4 {[%clk 0:02:37.8]} 25.
axb4 {[%clk 0:02:42.1]} 25... Ra1+ {[%clk 0:02:27.6]} 26. Kf2 {[%clk 0:02:37.2]}
26... Re4 {[%clk 0:01:54]} 27. Qxd5 {[%clk 0:02:15]} 27... Rxd4 {[%clk
0:01:20.2]} 28. Qxd4 {[%clk 0:02:13.1]} 28... Ra2 {[%clk 0:01:14.2]} 29. Rc8+
{[%clk 0:02:10.4]} 1-0

[Event "Live Chess"]
[Site "Chess.com"]
[Date "2024.06.01"]
[Round "-"]
[White "dhairyapandyauk"]
[Black "DoctorMantisTobogganMD"]
[Result "0-1"]
[WhiteElo "1655"]
[BlackElo "2161"]
[TimeControl "300"]
[EndTime "12:38:37 PDT"]
[Termination "DoctorMantisTobogganMD won by resignation"]

1. e4 {[%clk 0:04:58.1]} 1... c6 {[%clk 0:04:58.5]} 2. d4 {[%clk 0:04:56.9]}
2... g6 {[%clk 0:04:58.4]} 3. c4 {[%clk 0:04:55.3]} 3... Bg7 {[%clk 0:04:57.9]}
4. Nc3 {[%clk 0:04:54.9]} 4... d6 {[%clk 0:04:56.9]} 5. f4 {[%clk 0:04:54.1]}
5... c5 {[%clk 0:04:56.2]} 6. Nf3 {[%clk 0:04:52.6]} 6... Bg4 {[%clk 0:04:54.9]}
7. dxc5 {[%clk 0:04:47.4]} 7... dxc5 {[%clk 0:04:53]} 8. Qxd8+ {[%clk
0:04:46.3]} 8... Kxd8 {[%clk 0:04:52.9]} 9. Nd5 {[%clk 0:04:45]} 9... e6 {[%clk
0:04:48]} 10. Ne3 {[%clk 0:04:40.8]} 10... Bxf3 {[%clk 0:04:46.7]} 11. gxf3
{[%clk 0:04:40.4]} 11... Nc6 {[%clk 0:04:46.2]} 12. Bd2 {[%clk 0:04:37.1]} 12...
Nd4 {[%clk 0:04:20.3]} 13. Kf2 {[%clk 0:04:29.8]} 13... Kc7 {[%clk 0:04:14.9]}
14. Bc3 {[%clk 0:04:27]} 14... Rd8 {[%clk 0:04:12.4]} 15. Rd1 {[%clk 0:04:19.9]}
15... Ne7 {[%clk 0:04:11.4]} 16. Bh3 {[%clk 0:04:10.8]} 16... a6 {[%clk
0:04:03.8]} 17. b3 {[%clk 0:04:05.6]} 17... f5 {[%clk 0:04:00.8]} 18. e5 {[%clk
0:04:00.7]} 18... Bh6 {[%clk 0:03:58.9]} 19. Ng2 {[%clk 0:03:55.6]} 19... Nec6
{[%clk 0:03:54.1]} 20. Rhe1 {[%clk 0:03:50.5]} 20... b5 {[%clk 0:03:50.2]} 21.
cxb5 {[%clk 0:03:48.9]} 21... axb5 {[%clk 0:03:50.1]} 22. Re3 {[%clk 0:03:21]}
22... b4 {[%clk 0:03:44.2]} 23. Bb2 {[%clk 0:03:20.1]} 23... Ra8 {[%clk
0:03:42.7]} 24. Rc1 {[%clk 0:03:10]} 24... Rxa2 {[%clk 0:03:39.1]} 25. Rxc5
{[%clk 0:02:52.7]} 25... Rxb2+ {[%clk 0:03:36.8]} 26. Kg3 {[%clk 0:02:51.6]}
26... Kb6 {[%clk 0:03:35.4]} 27. Rc4 {[%clk 0:02:49]} 27... Ne2+ {[%clk
0:03:31.7]} 28. Kh4 {[%clk 0:02:45]} 28... Ned4 {[%clk 0:03:24.7]} 29. Kg3
{[%clk 0:02:39.1]} 29... Rxb3 {[%clk 0:03:19]} 30. Rxb3 {[%clk 0:02:32.6]} 30...
Nxb3 {[%clk 0:03:18.9]} 31. Ne1 {[%clk 0:02:29.1]} 31... Rd8 {[%clk 0:03:14.9]}
32. Nc2 {[%clk 0:02:25.9]} 32... Kb5 {[%clk 0:03:12.9]} 0-1

[Event "Live Chess"]
[Site "Chess.com"]
[Date "2024.06.01"]
[Round "-"]
[White "KwikPhoenix"]
[Black "matt1979"]
[Result "1-0"]
[WhiteElo "2462"]
[BlackElo "1387"]
[TimeControl "300"]
[EndTime "12:38:38 PDT"]
[Termination "KwikPhoenix won by checkmate"]

1. Nc3 {[%clk 0:04:54.6]} 1... f5 {[%clk 0:04:56.2]} 2. e4 {[%clk 0:04:53.2]}
2... fxe4 {[%clk 0:04:53.6]} 3. Nxe4 {[%clk 0:04:52.7]} 3... Nf6 {[%clk
0:04:52.6]} 4. Nxf6+ {[%clk 0:04:51.4]} 4... exf6 {[%clk 0:04:51.2]} 5. Bd3
{[%clk 0:04:49]} 5... Bc5 {[%clk 0:04:49.1]} 6. Qh5+ {[%clk 0:04:47.7]} 6... Ke7
{[%clk 0:04:42]} 7. Nf3 {[%clk 0:04:45]} 7... d6 {[%clk 0:04:37.4]} 8. O-O
{[%clk 0:04:43.9]} 8... g6 {[%clk 0:04:30.3]} 9. Re1+ {[%clk 0:04:41.4]} 9...
Kd7 {[%clk 0:04:28.1]} 10. Qg4+ {[%clk 0:04:38.3]} 10... f5 {[%clk 0:04:26.4]}
11. Qa4+ {[%clk 0:04:32.4]} 11... c6 {[%clk 0:04:23.7]} 12. Qb3 {[%clk
0:04:31.3]} 12... Qb6 {[%clk 0:04:20.5]} 13. Qxb6 {[%clk 0:04:27.7]} 13... axb6
{[%clk 0:04:18.9]} 14. b3 {[%clk 0:04:26.4]} 14... Na6 {[%clk 0:04:15.9]} 15.
Bb2 {[%clk 0:04:23.2]} 15... Re8 {[%clk 0:04:12]} 16. a3 {[%clk 0:04:18.8]}
16... Nc7 {[%clk 0:04:06.5]} 17. b4 {[%clk 0:04:17.3]} 17... Bxf2+ {[%clk
0:04:00.7]} 18. Kxf2 {[%clk 0:04:15.5]} 18... Ne6 {[%clk 0:03:55.4]} 19. g3
{[%clk 0:04:10.9]} 19... Kc7 {[%clk 0:03:53.4]} 20. h4 {[%clk 0:04:07.9]} 20...
Bd7 {[%clk 0:03:51.8]} 21. Nd4 {[%clk 0:04:07.3]} 21... Nxd4 {[%clk 0:03:50.1]}
22. Bxd4 {[%clk 0:04:07.2]} 22... c5 {[%clk 0:03:43.4]} 23. Be3 {[%clk
0:04:05.5]} 23... d5 {[%clk 0:03:39.1]} 24. Bf4+ {[%clk 0:04:01.3]} 24... Kc6
{[%clk 0:03:37.3]} 25. b5# {[%clk 0:04:00.8]} 1-0

[Event "Live Chess"]
[Site "Chess.com"]
[Date "2024.06.01"]
[Round "-"]
[White "Sweet-O"]
[Black "Ksenia_2013"]
[Result "1-0"]
[WhiteElo "1556"]
[BlackElo "764"]
[TimeControl "300"]
[EndTime "12:39:02 PDT"]
[Termination "Sweet-O won by checkmate"]

1. d4 {[%clk 0:04:59]} 1... d5 {[%clk 0:04:58.5]} 2. Nc3 {[%clk 0:04:58.9]} 2...
Nf6 {[%clk 0:04:56.3]} 3. Bf4 {[%clk 0:04:58.4]} 3... g6 {[%clk 0:04:53.9]} 4.
e3 {[%clk 0:04:57.9]} 4... Bg7 {[%clk 0:04:52.4]} 5. f3 {[%clk 0:04:57.3]} 5...
O-O {[%clk 0:04:50.9]} 6. g4 {[%clk 0:04:56.9]} 6... g5 {[%clk 0:04:48.4]} 7. h4
{[%clk 0:04:54.1]} 7... gxh4 {[%clk 0:04:37.9]} 8. Rxh4 {[%clk 0:04:51.7]} 8...
Nc6 {[%clk 0:04:33.6]} 9. Qd3 {[%clk 0:04:49.4]} 9... e6 {[%clk 0:04:22.1]} 10.
g5 {[%clk 0:04:47.4]} 10... Bd7 {[%clk 0:04:12.4]} 11. gxf6 {[%clk 0:04:44.7]}
11... Qxf6 {[%clk 0:04:10.1]} 12. Qxh7# {[%clk 0:04:43.3]} 1-0

[Event "Live Chess"]
[Site "Chess.com"]
[Date "2024.06.01"]
[Round "-"]
[White "yarek"]
[Black "gmnorfolk"]
[Result "0-1"]
[WhiteElo "1728"]
[BlackElo "2072"]
[TimeControl "300"]
[EndTime "12:39:09 PDT"]
[Termination "gmnorfolk won on time"]

1. e4 {[%clk 0:04:55.5]} 1... c5 {[%clk 0:04:56.9]} 2. d4 {[%clk 0:04:54.2]}
2... cxd4 {[%clk 0:04:55.6]} 3. c3 {[%clk 0:04:53.8]} 3... dxc3 {[%clk
0:04:55.5]} 4. Nxc3 {[%clk 0:04:52.7]} 4... Nc6 {[%clk 0:04:55.2]} 5. Bc4 {[%clk
0:04:51.5]} 5... e6 {[%clk 0:04:54.3]} 6. Nf3 {[%clk 0:04:50.9]} 6... Bb4 {[%clk
0:04:53.7]} 7. O-O {[%clk 0:04:42.9]} 7... Nge7 {[%clk 0:04:43.4]} 8. Nb5 {[%clk
0:04:30.9]} 8... d5 {[%clk 0:04:38.2]} 9. exd5 {[%clk 0:04:22.8]} 9... exd5
{[%clk 0:04:36.7]} 10. Bxd5 {[%clk 0:04:20.8]} 10... O-O {[%clk 0:04:27.1]} 11.
Bxc6 {[%clk 0:03:41.1]} 11... Nxc6 {[%clk 0:04:23.3]} 12. Bf4 {[%clk 0:03:28.6]}
12... Qxd1 {[%clk 0:04:18.3]} 13. Rfxd1 {[%clk 0:03:27.3]} 13... Bg4 {[%clk
0:04:17.8]} 14. a3 {[%clk 0:03:20.5]} 14... Bxf3 {[%clk 0:04:11.2]} 15. gxf3
{[%clk 0:03:19.2]} 15... Ba5 {[%clk 0:04:04]} 16. b4 {[%clk 0:03:14.1]} 16...
Bb6 {[%clk 0:04:02.8]} 17. Rd7 {[%clk 0:03:09]} 17... Nd8 {[%clk 0:04:01.8]} 18.
Rad1 {[%clk 0:02:56.2]} 18... a6 {[%clk 0:04:00.4]} 19. Nc7 {[%clk 0:02:49.8]}
19... Bxc7 {[%clk 0:03:56.3]} 20. Rxc7 {[%clk 0:02:48.2]} 20... Ne6 {[%clk
0:03:55.3]} 21. Rc4 {[%clk 0:02:45.2]} 21... b5 {[%clk 0:03:42.3]} 22. Re4
{[%clk 0:02:40.8]} 22... Rfd8 {[%clk 0:03:36.9]} 23. Rxd8+ {[%clk 0:02:29.3]}
23... Rxd8 {[%clk 0:03:35]} 24. Be3 {[%clk 0:02:18.8]} 24... Rd3 {[%clk
0:03:26.7]} 25. f4 {[%clk 0:02:17.1]} 25... g6 {[%clk 0:03:24.3]} 26. f5 {[%clk
0:01:58.7]} 26... gxf5 {[%clk 0:03:21.9]} 27. Re5 {[%clk 0:01:53.9]} 27... f4
{[%clk 0:03:20.9]} 28. Bc5 {[%clk 0:01:45.5]} 28... Rxa3 {[%clk 0:03:10.6]} 29.
Kg2 {[%clk 0:01:32.6]} 29... Nxc5 {[%clk 0:03:03.5]} 30. Rxc5 {[%clk 0:01:29]}
30... Rb3 {[%clk 0:03:01.1]} 31. Rc6 {[%clk 0:01:18.6]} 31... Rxb4 {[%clk
0:02:57.8]} 32. Rxa6 {[%clk 0:01:18.1]} 32... Rb3 {[%clk 0:02:56.2]} 33. Rb6
{[%clk 0:01:09]} 33... Kg7 {[%clk 0:02:47.7]} 34. h4 {[%clk 0:01:05.4]} 34... f6
{[%clk 0:02:44.1]} 35. f3 {[%clk 0:00:58.7]} 35... Kg6 {[%clk 0:02:41.4]} 36.
Kh3 {[%clk 0:00:54.2]} 36... Rxf3+ {[%clk 0:02:38.6]} 37. Kg4 {[%clk 0:00:53.8]}
37... Rb3 {[%clk 0:02:36.3]} 38. Kxf4 {[%clk 0:00:52.4]} 38... Rb4+ {[%clk
0:02:35.8]} 39. Kg3 {[%clk 0:00:50.8]} 39... h5 {[%clk 0:02:31.5]} 40. Rb8
{[%clk 0:00:47.6]} 40... Kf5 {[%clk 0:02:30.4]} 41. Rh8 {[%clk 0:00:44.8]} 41...
Rb3+ {[%clk 0:02:29.4]} 42. Kf2 {[%clk 0:00:43.5]} 42... Kg4 {[%clk 0:02:28.6]}
43. Rg8+ {[%clk 0:00:38.3]} 43... Kxh4 {[%clk 0:02:27.7]} 44. Rg6 {[%clk
0:00:37.3]} 44... f5 {[%clk 0:02:26.3]} 45. Rg1 {[%clk 0:00:34.2]} 45... f4
{[%clk 0:02:23.6]} 46. Ke2 {[%clk 0:00:33]} 46... Rg3 {[%clk 0:02:16.1]} 47. Rb1
{[%clk 0:00:29.5]} 47... Re3+ {[%clk 0:02:00.6]} 48. Kf2 {[%clk 0:00:28.1]}
48... Re5 {[%clk 0:01:58.7]} 49. Kf3 {[%clk 0:00:26]} 49... Kg5 {[%clk
0:01:57.1]} 50. Rg1+ {[%clk 0:00:24]} 50... Kf5 {[%clk 0:01:55.9]} 51. Rh1
{[%clk 0:00:23.2]} 51... Re3+ {[%clk 0:01:55]} 52. Kf2 {[%clk 0:00:21.8]} 52...
Kg5 {[%clk 0:01:50]} 53. Rb1 {[%clk 0:00:20.3]} 53... Re5 {[%clk 0:01:47.9]} 54.
Rg1+ {[%clk 0:00:18.3]} 54... Kh6 {[%clk 0:01:41.7]} 55. Rb1 {[%clk 0:00:16.2]}
55... h4 {[%clk 0:01:40.3]} 56. Kf3 {[%clk 0:00:15.6]} 56... Kg5 {[%clk
0:01:38.9]} 57. Rg1+ {[%clk 0:00:14.4]} 57... Kf5 {[%clk 0:01:37.9]} 58. Rh1
{[%clk 0:00:13.9]} 58... Re3+ {[%clk 0:01:36.7]} 59. Kf2 {[%clk 0:00:13]} 59...
h3 {[%clk 0:01:35.7]} 60. Rb1 {[%clk 0:00:09.2]} 60... Kg4 {[%clk 0:01:30.2]}
61. Rxb5 {[%clk 0:00:07.9]} 61... h2 {[%clk 0:01:27.9]} 62. Kg2 {[%clk
0:00:06.9]} 62... Rh3 {[%clk 0:01:16.6]} 63. Kh1 {[%clk 0:00:03.8]} 63... Rc3
{[%clk 0:01:08.6]} 64. Kxh2 {[%clk 0:00:02.2]} 64... Rc2+ {[%clk 0:01:07.4]} 65.
Kg1 {[%clk 0:00:01.3]} 65... f3 {[%clk 0:01:01.9]} 0-1